[Event "Titled Tuesday Blitz December 20 Late 2022"]
[White "Adel, Sara"]
[Black "Li, Hui"]
[WhiteFideId "10616764"]
[BlackFideId "15400310"]
[WhiteElo "1997"]
[BlackElo "1954"]
[Result "1/2-1/2"]
[Round "08"]
[TimeControl "180+1"]
[Date "2022.12.21"]
[WhiteClock "0:00:51"]
[BlackClock "0:00:06"]

1. e4 {[%clk 0:03:00]}  e5 {[%clk 0:02:59]} 2. Nf3 {[%clk 0:02:59]}  Nf6 {[%clk 0:02:59]} 3. Nxe5 {[%clk 0:02:58]}  d6 {[%clk 0:02:59]} 4. Nxf7 {[%clk 0:02:56]}  Kxf7 {[%clk 0:03:00]} 5. Bc4+ {[%clk 0:02:57]}  d5 {[%clk 0:03:00]} 6. exd5 {[%clk 0:02:51]}  Bd6 {[%clk 0:03:00]} 7. O-O {[%clk 0:02:51]}  Rf8 {[%clk 0:02:58]} 8. d4 {[%clk 0:02:49]}  Kg8 {[%clk 0:02:58]} 9. Nc3 {[%clk 0:02:49]}  Nbd7 {[%clk 0:02:48]} 10. h3 {[%clk 0:02:48]}  Nb6 {[%clk 0:02:48]} 11. Bb3 {[%clk 0:02:47]}  Bd7 {[%clk 0:02:46]} 12. Bg5 {[%clk 0:02:47]}  Be8 {[%clk 0:02:44]} 13. Ne4 {[%clk 0:02:44]}  Kh8 {[%clk 0:02:37]} 14. c4 {[%clk 0:02:42]}  Be7 {[%clk 0:02:27]} 15. Ng3 {[%clk 0:02:36]}  Nfxd5 {[%clk 0:02:14]} 16. Bxe7 {[%clk 0:02:33]}  Nxe7 {[%clk 0:02:14]} 17. Qg4 {[%clk 0:02:27]}  Bg6 {[%clk 0:02:03]} 18. Ne2 {[%clk 0:02:21]}  Qd7 {[%clk 0:01:58]} 19. Qh4 {[%clk 0:02:19]}  Nf5 {[%clk 0:01:55]} 20. Qg5 {[%clk 0:02:19]}  Qe7 {[%clk 0:01:53]} 21. Qd2 {[%clk 0:02:17]}  Rae8 {[%clk 0:01:31]} 22. Nf4 {[%clk 0:02:14]}  Qf6 {[%clk 0:01:23]} 23. c5 {[%clk 0:02:12]}  Nc8 {[%clk 0:01:20]} 24. d5 {[%clk 0:02:00]}  b6 {[%clk 0:01:07]} 25. Rac1 {[%clk 0:01:49]}  Qd4 {[%clk 0:01:05]} 26. Rfd1 {[%clk 0:01:42]}  Qxd2 {[%clk 0:01:02]} 27. Rxd2 {[%clk 0:01:42]}  Bf7 {[%clk 0:00:55]} 28. g4 {[%clk 0:01:40]}  Nh4 {[%clk 0:00:51]} 29. Rd3 {[%clk 0:01:30]}  Bg8 {[%clk 0:00:42]} 30. d6 {[%clk 0:01:26]}  cxd6 {[%clk 0:00:37]} 31. cxd6 {[%clk 0:01:27]}  Nxd6 {[%clk 0:00:31]} 32. Ng6+ {[%clk 0:01:06]}  hxg6 {[%clk 0:00:30]} 33. Rxd6 {[%clk 0:01:07]}  Bxb3 {[%clk 0:00:27]} 34. axb3 {[%clk 0:01:07]}  Re2 {[%clk 0:00:24]} 35. Rf1 {[%clk 0:01:05]}  Rxb2 {[%clk 0:00:21]} 36. Kh2 {[%clk 0:01:03]}  Nf3+ {[%clk 0:00:20]} 37. Kg3 {[%clk 0:01:04]}  Ng5 {[%clk 0:00:19]} 38. Rxg6 {[%clk 0:01:03]}  Ne4+ {[%clk 0:00:19]} 39. Kh4 {[%clk 0:01:03]}  Rbxf2 {[%clk 0:00:12]} 40. Rxf2 {[%clk 0:01:02]}  Nxf2 {[%clk 0:00:11]} 41. Rc6 {[%clk 0:01:00]}  Rf3 {[%clk 0:00:09]} 42. Kg5 {[%clk 0:01:00]}  Kh7 {[%clk 0:00:07]} 43. Rc7 {[%clk 0:01:00]}  Nxh3+ {[%clk 0:00:06]} 44. Kh4 {[%clk 0:00:59]}  Rxb3 {[%clk 0:00:05]} 45. Rxa7 {[%clk 0:00:58]}  Nf2 {[%clk 0:00:05]} 46. g5 {[%clk 0:00:58]}  Kg6 {[%clk 0:00:05]} 47. Rb7 {[%clk 0:00:57]}  Ne4 {[%clk 0:00:05]} 48. Rc7 {[%clk 0:00:52]}  Nxg5 {[%clk 0:00:05]} 49. Rc6+ {[%clk 0:00:52]}  Kf5 {[%clk 0:00:06]} 50. Rc3 {[%clk 0:00:51]}  Ne6 {[%clk 0:00:01]} 51. Rxb3 {[%clk 0:00:51]}  b5 {[%clk 0:00:02]} 52. Rxb5+ {[%clk 0:00:49]}  Kf6 {[%clk 0:00:03]} 53. Rb6 {[%clk 0:00:49]}  g5+ {[%clk 0:00:04]} 54. Kg4 {[%clk 0:00:49]}  Kf7 {[%clk 0:00:04]} 55. Rb7+ {[%clk 0:00:47]}  Kf6 {[%clk 0:00:04]} 56. Rb6 {[%clk 0:00:47]}  Kf7 {[%clk 0:00:04]} 57. Rb5 {[%clk 0:00:48]}  Kf6 {[%clk 0:00:05]} 58. Rf5+ {[%clk 0:00:48]}  Kg6 {[%clk 0:00:04]} 59. Re5 {[%clk 0:00:49]}  Kf6 {[%clk 0:00:05]} 60. Re4 {[%clk 0:00:48]}  Kf7 {[%clk 0:00:05]} 61. Kf5 {[%clk 0:00:49]}  Ng7+ {[%clk 0:00:04]} 62. Kxg5 {[%clk 0:00:49]}  Ne6+ {[%clk 0:00:05]} 63. Kh5 {[%clk 0:00:49]}  Kf6 {[%clk 0:00:05]} 64. Rg4 {[%clk 0:00:49]}  Kf5 {[%clk 0:00:04]} 65. Rg1 {[%clk 0:00:49]}  Nf4+ {[%clk 0:00:04]} 66. Kh4 {[%clk 0:00:49]}  Ng6+ {[%clk 0:00:04]} 67. Kh3 {[%clk 0:00:49]}  Nf4+ {[%clk 0:00:05]} 68. Kg3 {[%clk 0:00:50]}  Ne2+ {[%clk 0:00:05]} 69. Kf2 {[%clk 0:00:51]}  Nxg1 {[%clk 0:00:06]} 1/2-1/2


[Site "https://www.chess.com"]

[Event "Titled Tuesday Blitz December 20 Late 2022"]
[White "Aghasiyev, Kamal"]
[Black "Rose, Felix"]
[WhiteFideId "13402854"]
[BlackFideId "5105722"]
[WhiteElo "2341"]
[BlackElo "2039"]
[Result "1-0"]
[Round "08"]
[TimeControl "180+1"]
[Date "2022.12.21"]
[WhiteClock "0:00:07"]
[BlackClock "0:00:05"]

1. d4 {[%clk 0:03:00]}  d5 {[%clk 0:02:59]} 2. c4 {[%clk 0:03:00]}  e6 {[%clk 0:03:00]} 3. Nf3 {[%clk 0:03:00]}  Nf6 {[%clk 0:03:00]} 4. g3 {[%clk 0:02:59]}  dxc4 {[%clk 0:03:00]} 5. Bg2 {[%clk 0:02:58]}  a6 {[%clk 0:03:00]} 6. O-O {[%clk 0:02:53]}  Nc6 {[%clk 0:03:01]} 7. a4 {[%clk 0:02:47]}  Rb8 {[%clk 0:03:01]} 8. e3 {[%clk 0:02:36]}  Bd7 {[%clk 0:03:00]} 9. Qe2 {[%clk 0:02:23]}  b5 {[%clk 0:02:56]} 10. axb5 {[%clk 0:02:23]}  axb5 {[%clk 0:02:57]} 11. b3 {[%clk 0:02:21]}  cxb3 {[%clk 0:02:49]} 12. Nbd2 {[%clk 0:02:20]}  Bd6 {[%clk 0:02:43]} 13. Nxb3 {[%clk 0:02:17]}  Qe7 {[%clk 0:02:41]} 14. Bb2 {[%clk 0:02:14]}  O-O {[%clk 0:02:39]} 15. Rfc1 {[%clk 0:02:08]}  e5 {[%clk 0:02:16]} 16. Rxc6 {[%clk 0:01:09]}  Bxc6 {[%clk 0:02:15]} 17. dxe5 {[%clk 0:01:09]}  Bxf3 {[%clk 0:02:16]} 18. exd6 {[%clk 0:01:08]}  Bxe2 {[%clk 0:01:52]} 19. dxe7 {[%clk 0:01:08]}  Rfe8 {[%clk 0:01:53]} 20. Nd4 {[%clk 0:01:00]}  Bc4 {[%clk 0:01:49]} 21. Nc6 {[%clk 0:00:48]}  Rb6 {[%clk 0:01:46]} 22. Bxf6 {[%clk 0:00:41]}  gxf6 {[%clk 0:01:47]} 23. Rd1 {[%clk 0:00:42]}  Rxc6 {[%clk 0:00:48]} 24. Rd8 {[%clk 0:00:40]}  Re6 {[%clk 0:00:49]} 25. Rxe8+ {[%clk 0:00:37]}  Kg7 {[%clk 0:00:49]} 26. Bh3 {[%clk 0:00:31]}  Re5 {[%clk 0:00:42]} 27. e4 {[%clk 0:00:09]}  b4 {[%clk 0:00:31]} 28. Bf5 {[%clk 0:00:07]}  Bb5 {[%clk 0:00:27]} 29. Rb8 {[%clk 0:00:06]}  Bc6 {[%clk 0:00:21]} 30. Rxb4 {[%clk 0:00:06]}  Rxe7 {[%clk 0:00:21]} 31. f3 {[%clk 0:00:06]}  Bd7 {[%clk 0:00:20]} 32. g4 {[%clk 0:00:04]}  Bxf5 {[%clk 0:00:20]} 33. gxf5 {[%clk 0:00:05]}  Rd7 {[%clk 0:00:20]} 34. Rc4 {[%clk 0:00:06]}  Kf8 {[%clk 0:00:20]} 35. Kf2 {[%clk 0:00:06]}  Ke7 {[%clk 0:00:20]} 36. Ke3 {[%clk 0:00:06]}  Kd8 {[%clk 0:00:21]} 37. Rc6 {[%clk 0:00:06]}  Ke7 {[%clk 0:00:20]} 38. Ra6 {[%clk 0:00:05]}  Rd1 {[%clk 0:00:20]} 39. Ra7 {[%clk 0:00:04]}  Kd7 {[%clk 0:00:19]} 40. Ra8 {[%clk 0:00:04]}  Rh1 {[%clk 0:00:19]} 41. Rf8 {[%clk 0:00:04]}  Rxh2 {[%clk 0:00:19]} 42. Rxf7+ {[%clk 0:00:05]}  Kd6 {[%clk 0:00:19]} 43. Rxf6+ {[%clk 0:00:05]}  Kd7 {[%clk 0:00:20]} 44. Rf7+ {[%clk 0:00:05]}  Kd6 {[%clk 0:00:20]} 45. Rg7 {[%clk 0:00:05]}  c5 {[%clk 0:00:20]} 46. Rg8 {[%clk 0:00:04]}  c4 {[%clk 0:00:20]} 47. Rc8 {[%clk 0:00:05]}  h5 {[%clk 0:00:18]} 48. Rxc4 {[%clk 0:00:04]}  h4 {[%clk 0:00:18]} 49. Rc8 {[%clk 0:00:05]}  h3 {[%clk 0:00:19]} 50. Rh8 {[%clk 0:00:05]}  Rh1 {[%clk 0:00:18]} 51. Kf4 {[%clk 0:00:06]}  Ke7 {[%clk 0:00:19]} 52. e5 {[%clk 0:00:05]}  Kf7 {[%clk 0:00:18]} 53. Rh7+ {[%clk 0:00:05]}  Kg8 {[%clk 0:00:18]} 54. Rh4 {[%clk 0:00:06]}  h2 {[%clk 0:00:17]} 55. f6 {[%clk 0:00:06]}  Re1 {[%clk 0:00:18]} 56. Rxh2 {[%clk 0:00:06]}  Kf7 {[%clk 0:00:19]} 57. Kf5 {[%clk 0:00:06]}  Rg1 {[%clk 0:00:18]} 58. f4 {[%clk 0:00:06]}  Kf8 {[%clk 0:00:18]} 59. Rh7 {[%clk 0:00:06]}  Rg8 {[%clk 0:00:17]} 60. Ra7 {[%clk 0:00:05]}  Rg1 {[%clk 0:00:17]} 61. Ke6 {[%clk 0:00:05]}  Kg8 {[%clk 0:00:17]} 62. Ra8+ {[%clk 0:00:06]}  Kh7 {[%clk 0:00:17]} 63. f7 {[%clk 0:00:06]}  Rg6+ {[%clk 0:00:14]} 64. Kf5 {[%clk 0:00:06]}  Rh6 {[%clk 0:00:08]} 65. Ke4 {[%clk 0:00:06]}  Rf6 {[%clk 0:00:07]} 66. exf6 {[%clk 0:00:06]}  Kg6 {[%clk 0:00:05]} 67. f8=Q {[%clk 0:00:06]}  Kh5 {[%clk 0:00:05]} 68. Qg7 {[%clk 0:00:06]}  Kh4 {[%clk 0:00:05]} 69. Rh8# {[%clk 0:00:07]} 1-0


[Site "https://www.chess.com"]

[Event "Titled Tuesday Blitz December 20 Late 2022"]
[White "Alex_Sahakyan2006"]
[Black "Begmuratov, Khumoyun"]
[BlackFideId "14210207"]
[WhiteElo "2627"]
[BlackElo "2267"]
[Result "1/2-1/2"]
[Round "08"]
[TimeControl "180+1"]
[Date "2022.12.21"]
[WhiteClock "0:00:14"]
[BlackClock "0:00:03"]

1. c4 {[%clk 0:03:00]}  Nf6 {[%clk 0:02:59]} 2. Nc3 {[%clk 0:03:00]}  g6 {[%clk 0:02:58]} 3. d4 {[%clk 0:03:00]}  d5 {[%clk 0:02:56]} 4. cxd5 {[%clk 0:03:00]}  Nxd5 {[%clk 0:02:57]} 5. Nf3 {[%clk 0:03:00]}  Bg7 {[%clk 0:02:55]} 6. Na4 {[%clk 0:03:00]}  O-O {[%clk 0:02:54]} 7. e4 {[%clk 0:03:00]}  Nf6 {[%clk 0:02:50]} 8. Nc3 {[%clk 0:02:59]}  c5 {[%clk 0:02:49]} 9. Be3 {[%clk 0:02:47]}  Ng4 {[%clk 0:02:47]} 10. Bc4 {[%clk 0:02:44]}  Nxe3 {[%clk 0:02:47]} 11. fxe3 {[%clk 0:02:44]}  cxd4 {[%clk 0:02:45]} 12. exd4 {[%clk 0:02:45]}  Bg4 {[%clk 0:02:39]} 13. d5 {[%clk 0:02:33]}  b5 {[%clk 0:02:24]} 14. Bxb5 {[%clk 0:02:28]}  Qb6 {[%clk 0:02:23]} 15. Qb3 {[%clk 0:02:14]}  Na6 {[%clk 0:01:51]} 16. Bc6 {[%clk 0:01:54]}  Rab8 {[%clk 0:01:41]} 17. Qxb6 {[%clk 0:01:52]}  Rxb6 {[%clk 0:01:42]} 18. O-O-O {[%clk 0:01:52]}  Nb4 {[%clk 0:01:35]} 19. Ba4 {[%clk 0:01:48]}  Bxc3 {[%clk 0:01:26]} 20. bxc3 {[%clk 0:01:47]}  Nxa2+ {[%clk 0:01:26]} 21. Kc2 {[%clk 0:01:47]}  Rc8 {[%clk 0:01:24]} 22. Bc6 {[%clk 0:01:46]}  Rbxc6 {[%clk 0:01:01]} 23. dxc6 {[%clk 0:01:41]}  Rxc6 {[%clk 0:01:02]} 24. Rd8+ {[%clk 0:01:31]}  Kg7 {[%clk 0:01:01]} 25. Ne5 {[%clk 0:01:32]}  Rxc3+ {[%clk 0:00:59]} 26. Kb2 {[%clk 0:01:31]}  Be6 {[%clk 0:00:59]} 27. Rd4 {[%clk 0:01:19]}  Rb3+ {[%clk 0:00:53]} 28. Kxa2 {[%clk 0:01:12]}  Rd3+ {[%clk 0:00:42]} 29. Rc4 {[%clk 0:01:07]}  Rd4 {[%clk 0:00:27]} 30. Kb2 {[%clk 0:01:01]}  Bxc4 {[%clk 0:00:22]} 31. Kc3 {[%clk 0:01:02]}  Rxe4 {[%clk 0:00:23]} 32. Nxc4 {[%clk 0:01:02]}  Re2 {[%clk 0:00:23]} 33. g3 {[%clk 0:01:00]}  f5 {[%clk 0:00:23]} 34. Kd3 {[%clk 0:01:00]}  Ra2 {[%clk 0:00:23]} 35. h4 {[%clk 0:00:57]}  Kf6 {[%clk 0:00:22]} 36. Ne3 {[%clk 0:00:54]}  e5 {[%clk 0:00:20]} 37. Rc1 {[%clk 0:00:49]}  f4 {[%clk 0:00:12]} 38. Rc6+ {[%clk 0:00:46]}  Kf7 {[%clk 0:00:09]} 39. gxf4 {[%clk 0:00:44]}  exf4 {[%clk 0:00:09]} 40. Nd5 {[%clk 0:00:44]}  f3 {[%clk 0:00:08]} 41. Rf6+ {[%clk 0:00:35]}  Kg7 {[%clk 0:00:08]} 42. Rxf3 {[%clk 0:00:34]}  Ra3+ {[%clk 0:00:08]} 43. Nc3 {[%clk 0:00:35]}  Ra5 {[%clk 0:00:08]} 44. Rf4 {[%clk 0:00:34]}  Re5 {[%clk 0:00:08]} 45. Ra4 {[%clk 0:00:33]}  a5 {[%clk 0:00:07]} 46. Kd4 {[%clk 0:00:30]}  Rh5 {[%clk 0:00:07]} 47. Ne4 {[%clk 0:00:31]}  Rxh4 {[%clk 0:00:07]} 48. Rxa5 {[%clk 0:00:31]}  Rf4 {[%clk 0:00:07]} 49. Ke3 {[%clk 0:00:29]}  Rf7 {[%clk 0:00:06]} 50. Nd2 {[%clk 0:00:27]}  h6 {[%clk 0:00:06]} 51. Nf3 {[%clk 0:00:27]}  Re7+ {[%clk 0:00:06]} 52. Kf4 {[%clk 0:00:27]}  h5 {[%clk 0:00:04]} 53. Kg5 {[%clk 0:00:25]}  Rc7 {[%clk 0:00:03]} 54. Ne5 {[%clk 0:00:22]}  Re7 {[%clk 0:00:02]} 55. Nxg6 {[%clk 0:00:21]}  Rc7 {[%clk 0:00:03]} 56. Nh4 {[%clk 0:00:19]}  Rd7 {[%clk 0:00:03]} 57. Ra6 {[%clk 0:00:17]}  Rd5+ {[%clk 0:00:03]} 58. Nf5+ {[%clk 0:00:17]}  Kf7 {[%clk 0:00:03]} 59. Ra7+ {[%clk 0:00:17]}  Ke8 {[%clk 0:00:02]} 60. Kf6 {[%clk 0:00:17]}  Kd8 {[%clk 0:00:03]} 61. Ke6 {[%clk 0:00:17]}  Rd2 {[%clk 0:00:02]} 62. Rh7 {[%clk 0:00:16]}  Re2+ {[%clk 0:00:02]} 63. Kd5 {[%clk 0:00:16]}  Rd2+ {[%clk 0:00:02]} 64. Nd4 {[%clk 0:00:16]}  Ke8 {[%clk 0:00:02]} 65. Rxh5 {[%clk 0:00:16]}  Ke7 {[%clk 0:00:03]} 66. Rh6 {[%clk 0:00:15]}  Kd7 {[%clk 0:00:03]} 67. Rh7+ {[%clk 0:00:15]}  Kd8 {[%clk 0:00:02]} 68. Ke5 {[%clk 0:00:15]}  Rd1 {[%clk 0:00:03]} 69. Nf5 {[%clk 0:00:13]}  Rd2 {[%clk 0:00:02]} 70. Ne3 {[%clk 0:00:13]}  Rd3 {[%clk 0:00:02]} 71. Nd5 {[%clk 0:00:13]}  Ke8 {[%clk 0:00:03]} 72. Ke6 {[%clk 0:00:12]}  Kf8 {[%clk 0:00:02]} 73. Rf7+ {[%clk 0:00:12]}  Ke8 {[%clk 0:00:02]} 74. Ra7 {[%clk 0:00:08]}  Kf8 {[%clk 0:00:02]} 75. Rf7+ {[%clk 0:00:07]}  Ke8 {[%clk 0:00:02]} 76. Rf1 {[%clk 0:00:07]}  Rd2 {[%clk 0:00:02]} 77. Nc7+ {[%clk 0:00:08]}  Kd8 {[%clk 0:00:02]} 78. Nd5 {[%clk 0:00:08]}  Ke8 {[%clk 0:00:03]} 79. Rh1 {[%clk 0:00:08]}  Re2+ {[%clk 0:00:03]} 80. Kd6 {[%clk 0:00:08]}  Kf7 {[%clk 0:00:03]} 81. Rf1+ {[%clk 0:00:09]}  Kg7 {[%clk 0:00:03]} 82. Rg1+ {[%clk 0:00:09]}  Kf7 {[%clk 0:00:03]} 83. Rf1+ {[%clk 0:00:10]}  Kg7 {[%clk 0:00:04]} 84. Nc3 {[%clk 0:00:10]}  Rd2+ {[%clk 0:00:03]} 85. Ke5 {[%clk 0:00:10]}  Rd3 {[%clk 0:00:04]} 86. Ne4 {[%clk 0:00:11]}  Re3 {[%clk 0:00:03]} 87. Rg1+ {[%clk 0:00:11]}  Kf7 {[%clk 0:00:04]} 88. Rf1+ {[%clk 0:00:11]}  Ke7 {[%clk 0:00:04]} 89. Rh1 {[%clk 0:00:10]}  Re2 {[%clk 0:00:03]} 90. Rh7+ {[%clk 0:00:11]}  Kf8 {[%clk 0:00:04]} 91. Kf6 {[%clk 0:00:10]}  Ke8 {[%clk 0:00:04]} 92. Nd6+ {[%clk 0:00:10]}  Kd8 {[%clk 0:00:04]} 93. Nf7+ {[%clk 0:00:10]}  Kc8 {[%clk 0:00:04]} 94. Ne5 {[%clk 0:00:11]}  Rd2 {[%clk 0:00:03]} 95. Ke6 {[%clk 0:00:11]}  Rd1 {[%clk 0:00:03]} 96. Nc4 {[%clk 0:00:11]}  Re1+ {[%clk 0:00:03]} 97. Kd5 {[%clk 0:00:11]}  Rd1+ {[%clk 0:00:03]} 98. Kc6 {[%clk 0:00:12]}  Kd8 {[%clk 0:00:03]} 99. Ne5 {[%clk 0:00:11]}  Ke8 {[%clk 0:00:03]} 100. Nc4 {[%clk 0:00:11]}  Kf8 {[%clk 0:00:03]} 101. Nd6 {[%clk 0:00:11]}  Re1 {[%clk 0:00:02]} 102. Kd7 {[%clk 0:00:11]}  Re2 {[%clk 0:00:03]} 103. Rh3 {[%clk 0:00:11]}  Kg7 {[%clk 0:00:03]} 104. Rg3+ {[%clk 0:00:12]}  Kf6 {[%clk 0:00:03]} 105. Rg8 {[%clk 0:00:12]}  Re1 {[%clk 0:00:02]} 106. Rf8+ {[%clk 0:00:12]}  Kg5 {[%clk 0:00:03]} 107. Nc4 {[%clk 0:00:11]}  Rd1+ {[%clk 0:00:02]} 108. Ke6 {[%clk 0:00:12]}  Re1+ {[%clk 0:00:02]} 109. Ne5 {[%clk 0:00:12]}  Re2 {[%clk 0:00:03]} 110. Rf5+ {[%clk 0:00:13]}  Kh4 {[%clk 0:00:03]} 111. Rf1 {[%clk 0:00:13]}  Kg3 {[%clk 0:00:03]} 112. Rf8 {[%clk 0:00:13]}  Kg2 {[%clk 0:00:03]} 113. Rg8+ {[%clk 0:00:13]}  Kf2 {[%clk 0:00:03]} 114. Kf5 {[%clk 0:00:13]}  Ke3 {[%clk 0:00:03]} 115. Rg3+ {[%clk 0:00:14]} 1/2-1/2


[Site "https://www.chess.com"]

[Event "Titled Tuesday Blitz December 20 Late 2022"]
[White "Arbunic Castro, Giovanna"]
[Black "White, John S."]
[WhiteFideId "3400549"]
[BlackFideId "2502348"]
[WhiteElo "1953"]
[BlackElo "1962"]
[Result "1-0"]
[Round "08"]
[TimeControl "180+1"]
[Date "2022.12.21"]
[WhiteClock "0:00:16"]
[BlackClock "0:00:27"]

1. e4 {[%clk 0:03:00]}  c5 {[%clk 0:02:58]} 2. g3 {[%clk 0:02:59]}  Nc6 {[%clk 0:02:56]} 3. Bg2 {[%clk 0:02:58]}  g6 {[%clk 0:02:55]} 4. Ne2 {[%clk 0:02:57]}  Bg7 {[%clk 0:02:55]} 5. c3 {[%clk 0:02:58]}  d6 {[%clk 0:02:52]} 6. O-O {[%clk 0:02:57]}  e6 {[%clk 0:02:48]} 7. d4 {[%clk 0:02:56]}  cxd4 {[%clk 0:02:47]} 8. cxd4 {[%clk 0:02:55]}  Nf6 {[%clk 0:02:40]} 9. Nbc3 {[%clk 0:02:54]}  a6 {[%clk 0:02:37]} 10. h3 {[%clk 0:02:52]}  O-O {[%clk 0:02:36]} 11. Be3 {[%clk 0:02:51]}  d5 {[%clk 0:02:32]} 12. e5 {[%clk 0:02:49]}  Nd7 {[%clk 0:02:30]} 13. f4 {[%clk 0:02:46]}  Nb6 {[%clk 0:02:26]} 14. b3 {[%clk 0:02:44]}  Bd7 {[%clk 0:02:19]} 15. Qd2 {[%clk 0:02:42]}  Rc8 {[%clk 0:02:14]} 16. Rac1 {[%clk 0:02:40]}  Ne7 {[%clk 0:02:07]} 17. g4 {[%clk 0:02:39]}  f5 {[%clk 0:02:03]} 18. exf6 {[%clk 0:02:34]}  Bxf6 {[%clk 0:02:02]} 19. Ng3 {[%clk 0:02:13]}  Bg7 {[%clk 0:02:00]} 20. h4 {[%clk 0:01:35]}  Nc6 {[%clk 0:01:58]} 21. h5 {[%clk 0:01:32]}  Qh4 {[%clk 0:01:52]} 22. Qf2 {[%clk 0:01:23]}  Qxg4 {[%clk 0:01:48]} 23. Bf3 {[%clk 0:01:14]}  Qh4 {[%clk 0:01:42]} 24. Kg2 {[%clk 0:01:08]}  Qf6 {[%clk 0:01:34]} 25. hxg6 {[%clk 0:01:01]}  Nxd4 {[%clk 0:01:19]} 26. gxh7+ {[%clk 0:00:56]}  Kh8 {[%clk 0:01:18]} 27. Nh5 {[%clk 0:00:40]}  Qg6+ {[%clk 0:01:13]} 28. Kh2 {[%clk 0:00:38]}  Nxf3+ {[%clk 0:01:09]} 29. Qxf3 {[%clk 0:00:37]}  Rxc3 {[%clk 0:01:03]} 30. Rxc3 {[%clk 0:00:34]}  Bxc3 {[%clk 0:01:02]} 31. Bxb6 {[%clk 0:00:33]}  e5 {[%clk 0:00:54]} 32. Rg1 {[%clk 0:00:26]}  Qc2+ {[%clk 0:00:48]} 33. Rg2 {[%clk 0:00:23]}  Qc1 {[%clk 0:00:37]} 34. Qg3 {[%clk 0:00:19]}  e4 {[%clk 0:00:30]} 35. Qg8+ {[%clk 0:00:17]}  Rxg8 {[%clk 0:00:27]} 36. hxg8=Q# {[%clk 0:00:16]} 1-0


[Site "https://www.chess.com"]

[Event "Titled Tuesday Blitz December 20 Late 2022"]
[White "Arnold, Ken"]
[Black "Reprintsev, Alexander"]
[WhiteFideId "2056836"]
[BlackFideId "14100541"]
[WhiteElo "2362"]
[BlackElo "2230"]
[Result "1/2-1/2"]
[Round "08"]
[TimeControl "180+1"]
[Date "2022.12.21"]
[WhiteClock "0:00:17"]
[BlackClock "0:00:06"]

1. e4 {[%clk 0:03:00]}  d5 {[%clk 0:02:59]} 2. exd5 {[%clk 0:03:00]}  Qxd5 {[%clk 0:02:58]} 3. Nf3 {[%clk 0:03:01]}  Bg4 {[%clk 0:02:57]} 4. Be2 {[%clk 0:03:01]}  Nc6 {[%clk 0:02:57]} 5. h3 {[%clk 0:03:01]}  Bxf3 {[%clk 0:02:56]} 6. Bxf3 {[%clk 0:03:01]}  Qe6+ {[%clk 0:02:57]} 7. Qe2 {[%clk 0:03:00]}  Nd4 {[%clk 0:02:57]} 8. Qxe6 {[%clk 0:02:55]}  Nxf3+ {[%clk 0:02:58]} 9. gxf3 {[%clk 0:02:55]}  fxe6 {[%clk 0:02:59]} 10. d4 {[%clk 0:02:55]}  g6 {[%clk 0:02:57]} 11. f4 {[%clk 0:02:55]}  Bh6 {[%clk 0:02:52]} 12. Be3 {[%clk 0:02:55]}  Nf6 {[%clk 0:02:52]} 13. Ke2 {[%clk 0:02:55]}  Nd5 {[%clk 0:02:49]} 14. c4 {[%clk 0:02:49]}  Nxf4+ {[%clk 0:02:48]} 15. Bxf4 {[%clk 0:02:45]}  Bxf4 {[%clk 0:02:48]} 16. Nc3 {[%clk 0:02:45]}  O-O {[%clk 0:02:45]} 17. Rad1 {[%clk 0:02:42]}  Rf5 {[%clk 0:02:39]} 18. Ne4 {[%clk 0:02:39]}  b6 {[%clk 0:02:33]} 19. Rd3 {[%clk 0:02:39]}  Raf8 {[%clk 0:02:32]} 20. f3 {[%clk 0:02:38]}  c6 {[%clk 0:02:24]} 21. b4 {[%clk 0:02:37]}  Rd8 {[%clk 0:02:23]} 22. a4 {[%clk 0:02:35]}  e5 {[%clk 0:02:17]} 23. d5 {[%clk 0:02:34]}  cxd5 {[%clk 0:02:17]} 24. Rxd5 {[%clk 0:02:33]}  Rxd5 {[%clk 0:02:17]} 25. cxd5 {[%clk 0:02:33]}  Rf8 {[%clk 0:02:15]} 26. Kd3 {[%clk 0:02:15]}  Rc8 {[%clk 0:02:14]} 27. Rd1 {[%clk 0:02:13]}  Kf7 {[%clk 0:02:12]} 28. Nc3 {[%clk 0:02:01]}  a6 {[%clk 0:02:02]} 29. Ne4 {[%clk 0:01:43]}  Ke8 {[%clk 0:01:59]} 30. a5 {[%clk 0:01:37]}  bxa5 {[%clk 0:01:58]} 31. bxa5 {[%clk 0:01:37]}  Rb8 {[%clk 0:01:52]} 32. Kc4 {[%clk 0:01:34]}  Rb5 {[%clk 0:01:49]} 33. d6 {[%clk 0:01:33]}  Kd7 {[%clk 0:00:55]} 34. Nc5+ {[%clk 0:01:29]}  Rxc5+ {[%clk 0:00:55]} 35. Kxc5 {[%clk 0:01:29]}  Be3+ {[%clk 0:00:56]} 36. Kd5 {[%clk 0:01:25]}  exd6 {[%clk 0:00:55]} 37. Rb1 {[%clk 0:01:23]}  Kc7 {[%clk 0:00:54]} 38. Rb3 {[%clk 0:01:21]}  Bc5 {[%clk 0:00:54]} 39. Rb1 {[%clk 0:01:16]}  g5 {[%clk 0:00:50]} 40. Rb2 {[%clk 0:01:12]}  h5 {[%clk 0:00:50]} 41. h4 {[%clk 0:01:11]}  gxh4 {[%clk 0:00:37]} 42. Rh2 {[%clk 0:01:10]}  Bb4 {[%clk 0:00:34]} 43. Rxh4 {[%clk 0:01:07]}  Bxa5 {[%clk 0:00:33]} 44. Rxh5 {[%clk 0:01:02]}  Bb4 {[%clk 0:00:33]} 45. Rh7+ {[%clk 0:01:01]}  Kb6 {[%clk 0:00:33]} 46. Rh8 {[%clk 0:00:49]}  a5 {[%clk 0:00:29]} 47. Kc4 {[%clk 0:00:47]}  Kc6 {[%clk 0:00:28]} 48. Rh6 {[%clk 0:00:44]}  Bc5 {[%clk 0:00:28]} 49. Rf6 {[%clk 0:00:32]}  a4 {[%clk 0:00:27]} 50. f4 {[%clk 0:00:32]}  e4 {[%clk 0:00:22]} 51. Rf7 {[%clk 0:00:26]}  a3 {[%clk 0:00:21]} 52. Kb3 {[%clk 0:00:24]}  e3 {[%clk 0:00:21]} 53. Re7 {[%clk 0:00:24]}  d5 {[%clk 0:00:21]} 54. Re8 {[%clk 0:00:22]}  d4 {[%clk 0:00:20]} 55. f5 {[%clk 0:00:21]}  d3 {[%clk 0:00:20]} 56. Kc3 {[%clk 0:00:19]}  d2 {[%clk 0:00:19]} 57. Kc2 {[%clk 0:00:19]}  Bd4 {[%clk 0:00:13]} 58. Ra8 {[%clk 0:00:18]}  Bb2 {[%clk 0:00:11]} 59. f6 {[%clk 0:00:18]}  Bxf6 {[%clk 0:00:08]} 60. Rxa3 {[%clk 0:00:18]}  Bg5 {[%clk 0:00:09]} 61. Kd1 {[%clk 0:00:17]}  Kd5 {[%clk 0:00:09]} 62. Ra4 {[%clk 0:00:17]}  Ke5 {[%clk 0:00:08]} 63. Ke2 {[%clk 0:00:17]}  Kf5 {[%clk 0:00:08]} 64. Rb4 {[%clk 0:00:17]}  Bf4 {[%clk 0:00:07]} 65. Rb7 {[%clk 0:00:17]}  Kg4 {[%clk 0:00:07]} 66. Rg7+ {[%clk 0:00:17]}  Bg5 {[%clk 0:00:07]} 67. Rf7 {[%clk 0:00:16]}  Bf4 {[%clk 0:00:06]} 68. Rg7+ {[%clk 0:00:16]}  Bg5 {[%clk 0:00:06]} 69. Rf7 {[%clk 0:00:16]}  Bf4 {[%clk 0:00:06]} 70. Rg7+ {[%clk 0:00:17]} 1/2-1/2


[Site "https://www.chess.com"]